fUST/lending_fUST_20250923
["ID","MTS","AMOUNT","RATE_DAILY","PERIOD"]
[387195106,1758634245645,-480.0,0.00019178,2]
[387195107,1758634245654,-480.0,0.00019178,2]
[387195108,1758634245664,-480.0,0.00019178,2]
[387195109,1758634245673,-480.0,0.00019178,2]
[387195110,1758634245685,-1328.66,0.00019178,2]
[387195111,1758634245696,-481.81918862,0.00019178,2]
[387195112,1758634245707,-480.0,0.00019178,2]
[387195113,1758634245716,-480.0,0.00019178,2]
[387195114,1758634245726,-480.0,0.00019178,2]
[387195115,1758634245737,-300.09554424,0.00019178,2]
[387195121,1758634246552,-179.90445576,0.00019178,2]
[387195123,1758634246561,-480.0,0.00019178,2]
[387195124,1758634246571,-480.0,0.00019178,2]
[387195125,1758634246580,-518.82566992,0.00019178,2]
[387195126,1758634246589,-480.0,0.00019178,2]
[387195127,1758634246598,-480.0,0.00019178,2]
[387195128,1758634246608,-621.79613561,0.00019178,2]
[387195129,1758634246617,-480.0,0.00019178,2]
[387195130,1758634246626,-480.0,0.00019178,2]
[387195131,1758634246636,-480.0,0.00019178,2]
[387195132,1758634246645,-480.0,0.00019178,2]
[387195133,1758634246655,-480.0,0.00019178,2]
[387195134,1758634246664,-480.0,0.00019178,2]
[387195135,1758634246673,-480.0,0.00019178,2]
[387195136,1758634246683,-1806.9,0.00019178,2]
[387195137,1758634246692,-480.0,0.00019178,2]
[387195138,1758634246701,-480.0,0.00019178,2]
[387195139,1758634246711,-964.74,0.00019178,2]
[387195140,1758634246721,-480.0,0.00019178,2]
[387195141,1758634246730,-486.95382895,0.00019178,2]
[387195142,1758634246739,-480.0,0.00019178,2]
[387195143,1758634246748,-1773.99,0.00019178,2]
[387195144,1758634246758,-484.64621898,0.00019178,2]
[387195145,1758634246767,-480.0,0.00019178,2]
[387195146,1758634246776,-480.0,0.00019178,2]
[387195147,1758634246786,-480.0,0.00019178,2]
[387195148,1758634246796,-1090.09,0.00019178,2]
[387195149,1758634246805,-480.0,0.00019178,2]
[387195150,1758634246815,-480.0,0.00019178,2]
[387195151,1758634246827,-480.0,0.00019178,2]
[387195152,1758634246836,-480.0,0.00019178,2]
[387195153,1758634246846,-625.5642191,0.00019178,2]
[387195154,1758634246856,-480.0,0.00019178,2]
[387195155,1758634246865,-480.0,0.00019178,2]
[387195156,1758634246875,-480.0,0.00019178,2]
[387195157,1758634246884,-480.0,0.00019178,2]
[387195158,1758634246893,-1180.04,0.00019178,2]
[387195159,1758634246903,-480.0,0.00019178,2]
[387195160,1758634246912,-480.0,0.00019178,2]
[387195161,1758634246921,-480.0,0.00019178,2]
[387195162,1758634246931,-480.0,0.00019178,2]
[387195163,1758634246940,-480.0,0.00019178,2]
[387195164,1758634246949,-480.0,0.00019178,2]
[387195165,1758634246959,-480.0,0.00019178,2]
[387195166,1758634246968,-480.0,0.00019178,2]
[387195167,1758634246977,-480.0,0.00019178,2]
[387195168,1758634246986,-480.0,0.00019178,2]
[387195169,1758634246995,-627.82,0.00019178,2]
[387195170,1758634247005,-480.0,0.00019178,2]
[387195171,1758634247014,-480.0,0.00019178,2]
[387195172,1758634247023,-480.0,0.00019178,2]
[387195173,1758634247034,-480.0,0.00019178,2]
[387195174,1758634247043,-480.0,0.00019178,2]
[387195175,1758634247054,-480.0,0.00019178,2]
[387195176,1758634247063,-480.0,0.00019178,2]
[387195177,1758634247072,-480.0,0.00019178,2]
[387195178,1758634247082,-480.0,0.00019178,2]
[387195179,1758634247091,-480.0,0.00019178,2]
[387195180,1758634247101,-1750.9592591,0.00019178,2]
[387195181,1758634247110,-480.0,0.00019178,2]
[387195182,1758634247119,-480.0,0.00019178,2]
[387195183,1758634247129,-480.0,0.00019178,2]
[387195184,1758634247140,-612.97,0.00019178,2]
[387195185,1758634247149,-480.0,0.00019178,2]
[387195186,1758634247158,-480.0,0.00019178,2]
[387195187,1758634247167,-643.34,0.00019178,2]
[387195188,1758634247176,-480.0,0.00019178,2]
[387195189,1758634247185,-480.0,0.00019178,2]
[387195190,1758634247194,-480.0,0.00019178,2]
[387195191,1758634247203,-480.0,0.00019178,2]
[387195192,1758634247213,-480.0,0.00019178,2]
[387195193,1758634247222,-205.04236636,0.00019178,2]
[387195194,1758634247231,-480.0,0.00019178,2]
[387195195,1758634247241,-480.0,0.00019178,2]
[387195196,1758634247251,-480.0,0.00019178,2]
[387195197,1758634247261,-480.0,0.00019178,2]
[387195198,1758634247270,-480.0,0.00019178,2]
[387195199,1758634247279,-480.0,0.00019178,2]
[387195200,1758634247288,-480.0,0.00019178,2]
[387195201,1758634247297,-480.0,0.00019178,2]
[387195202,1758634247307,-480.0,0.00019178,2]
[387195203,1758634247316,-687.47,0.00019178,2]
[387195204,1758634247325,-480.0,0.00019178,2]
[387195205,1758634247335,-480.0,0.00019178,2]
[387195206,1758634247344,-2119.29,0.00019178,2]
[387195207,1758634247354,-480.0,0.00019178,2]
[387195208,1758634247364,-480.0,0.00019178,2]
[387195209,1758634247373,-480.0,0.00019178,2]
[387195210,1758634247382,-480.0,0.00019178,2]
[387195211,1758634247392,-621.75,0.00019178,2]
[387195212,1758634247401,-845.66,0.00019178,2]
[387195213,1758634247410,-926.74,0.00019178,2]
[387195214,1758634247419,-480.0,0.00019178,2]
[387195215,1758634247428,-327.42741492,0.00019178,2]
[387195216,1758634247437,-480.0,0.00019178,2]
[387195217,1758634247447,-480.0,0.00019178,2]
[387195218,1758634247457,-480.0,0.00019178,2]
[387195219,1758634247466,-480.0,0.00019178,2]
[387195220,1758634247475,-683.81,0.00019178,2]
[387195221,1758634247484,-480.0,0.00019178,2]
[387195222,1758634247494,-480.0,0.00019178,2]
[387195223,1758634247503,-480.0,0.00019178,2]
[387195224,1758634247512,-897.15,0.00019178,2]
[387195225,1758634247522,-480.0,0.00019178,2]
[387195226,1758634247532,-1177.21,0.00019178,2]
[387195227,1758634247542,-480.0,0.00019178,2]
[387195228,1758634247551,-480.0,0.00019178,2]
[387195229,1758634247560,-480.0,0.00019178,2]
[387195230,1758634247570,-480.0,0.00019178,2]
[387195231,1758634247579,-480.0,0.00019178,2]
[387195232,1758634247588,-480.0,0.00019178,2]
[387195233,1758634247597,-480.0,0.00019178,2]
[387195234,1758634247607,-472.19977036,0.00019178,2]
[387195235,1758634247617,-480.0,0.00019178,2]
[387195236,1758634247627,-480.0,0.00019178,2]
[387195237,1758634247636,-480.0,0.00019178,2]
[387195238,1758634247646,-480.0,0.00019178,2]
[387195239,1758634247655,-480.0,0.00019178,2]
[387195240,1758634247666,-480.0,0.00019178,2]
[387195241,1758634247676,-480.0,0.00019178,2]
[387195242,1758634247687,-480.0,0.00019178,2]
[387195243,1758634247697,-480.0,0.00019178,2]
[387195244,1758634247706,-480.0,0.00019178,2]
[387195245,1758634247716,-483.71829359,0.00019178,2]
[387195246,1758634247725,-1071.02,0.00019178,2]
[387195247,1758634247735,-726.02,0.00019178,2]
[387195248,1758634247745,-480.0,0.00019178,2]
[387195249,1758634247754,-480.0,0.00019178,2]
[387195250,1758634247764,-575.11835846,0.00019178,2]
[387195251,1758634247773,-9076.35,0.00019178,2]
[387195252,1758634247783,-480.0,0.00019178,2]
[387195253,1758634247793,-480.0,0.00019178,2]
[387195254,1758634247802,-480.0,0.00019178,2]
[387195255,1758634247811,-480.0,0.00019178,2]
[387195256,1758634247821,-480.0,0.00019178,2]
[387195257,1758634247836,-480.0,0.00019178,2]
[387195258,1758634247846,-380.7640216,0.00019178,2]
[387195259,1758634247856,-480.0,0.00019178,2]
[387195260,1758634247866,-480.0,0.00019178,2]
[387195261,1758634247877,-480.0,0.00019178,2]
[387195262,1758634247887,-483.64500667,0.00019178,2]
[387195263,1758634247896,-480.0,0.00019178,2]
[387195264,1758634247907,-693.25,0.00019178,2]
[387195265,1758634247917,-480.0,0.00019178,2]
[387195266,1758634247926,-896.84,0.00019178,2]
[387195267,1758634247935,-512.46521828,0.00019178,2]
[387195268,1758634247945,-855.27,0.00019178,2]
[387195269,1758634247954,-480.0,0.00019178,2]
[387195270,1758634247964,-480.0,0.00019178,2]
[387195271,1758634247973,-480.0,0.00019178,2]
[387195272,1758634247982,-480.0,0.00019178,2]
[387195273,1758634247991,-480.0,0.00019178,2]
[387195274,1758634248001,-600.72421204,0.00019178,2]
[387195275,1758634248010,-480.0,0.00019178,2]
[387195276,1758634248019,-1273.3,0.00019178,2]
[387195277,1758634248029,-500.0,0.00019178,2]
[387195278,1758634248038,-533.50375921,0.00019196,2]
[387195279,1758634248048,-239.5196482,0.000192,2]
[387195280,1758634248058,-174.26759782,0.0001926,2]
[387195281,1758634248068,-978.0,0.00019267,2]
[387195282,1758634248077,-2159.0,0.00019267,2]
[387195283,1758634248086,-635.0,0.00019267,2]
[387195284,1758634248096,-410.0,0.00019267,2]
[387195285,1758634248107,-313.1181108,0.000193,2]
[387195286,1758634248116,-168.0,0.00019318,2]
[387195287,1758634248126,-168.0,0.00019339,2]
[387195288,1758634248136,-174.26759782,0.00019342,2]
[387195289,1758634248146,-21208.83074577,0.00019352,2]
[387195290,1758634248249,-11066.38130369,0.00019352,2]
[387195291,1758634248259,-476.93072639,0.00019394,2]
[387195292,1758634248269,-175.0,0.00019399,2]
[387195293,1758634248278,-296.6276561,0.000194,2]
[387195294,1758634248288,-174.26759782,0.00019425,2]
[387195295,1758634248298,-428.91205696,0.00019452,2]
[387195296,1758634248308,-500.0,0.00019452,2]
[387195297,1758634248317,-480.0,0.00019452,2]
[387195298,1758634248328,-408.75971242,0.00019452,2]
[387195299,1758634248337,-480.0,0.00019452,2]
[387195300,1758634248347,-480.0,0.00019452,2]
[387195301,1758634248357,-484.82947926,0.00019452,2]
[387195302,1758634248366,-480.0,0.00019452,2]
[387195303,1758634248376,-480.0,0.00019452,2]
[387195304,1758634248386,-480.0,0.00019452,2]
[387195305,1758634248395,-480.0,0.00019452,2]
[387195306,1758634248404,-480.0,0.00019452,2]
[387195307,1758634248414,-480.0,0.00019452,2]
[387195308,1758634248424,-480.0,0.00019452,2]
[387195309,1758634248433,-356.06353557,0.00019452,2]
[387195310,1758634248442,-496.73362027,0.00019452,2]
[387195311,1758634248452,-480.0,0.00019452,2]
[387195312,1758634248461,-480.0,0.00019452,2]
[387195313,1758634248470,-499.21,0.00019452,2]
[387195314,1758634248480,-480.0,0.00019452,2]
[387195315,1758634248490,-480.0,0.00019452,2]
[387195316,1758634248499,-480.0,0.00019452,2]
[387195317,1758634248508,-480.0,0.00019452,2]
[387195318,1758634248518,-480.0,0.00019452,2]
[387195319,1758634248528,-480.0,0.00019452,2]
[387195320,1758634248537,-480.0,0.00019452,2]
[387195321,1758634248546,-366.53862063,0.00019452,2]
[387195322,1758634248555,-480.0,0.00019452,2]
[387195323,1758634248565,-480.0,0.00019452,2]
[387195324,1758634248575,-1000.0,0.00019452,2]
[387195325,1758634248585,-920.0,0.00019452,2]
[387195326,1758634248594,-480.0,0.00019452,2]
[387195327,1758634248604,-480.0,0.00019452,2]
[387195328,1758634248614,-358.17801661,0.00019452,2]
[387195329,1758634248624,-480.0,0.00019452,2]
[387195330,1758634248633,-480.0,0.00019452,2]
[387195331,1758634248644,-480.0,0.00019452,2]
[387195332,1758634248654,-480.0,0.00019452,2]
[387195333,1758634248664,-480.0,0.00019452,2]
[387195334,1758634248674,-480.0,0.00019452,2]
[387195335,1758634248683,-480.0,0.00019452,2]
[387195336,1758634248693,-480.0,0.00019452,2]
[387195337,1758634248702,-489.36610379,0.00019452,2]
[387195338,1758634248712,-480.0,0.00019452,2]
[387195339,1758634248723,-480.0,0.00019452,2]
[387195340,1758634248733,-480.0,0.00019452,2]
[387195341,1758634248743,-480.0,0.00019452,2]
[387195342,1758634248752,-480.0,0.00019452,2]
[387195343,1758634248762,-480.0,0.00019452,2]
[387195344,1758634248771,-480.0,0.00019452,2]
[387195345,1758634248781,-480.0,0.00019452,2]
[387195346,1758634248791,-480.0,0.00019452,2]
[387195347,1758634248800,-486.9727127,0.00019452,2]
[387195348,1758634248810,-480.0,0.00019452,2]
[387195349,1758634248822,-516.63343814,0.00019452,2]
[387195350,1758634248834,-480.0,0.00019452,2]
[387195351,1758634248844,-566.32656879,0.00019452,2]
[387195352,1758634248855,-510.79019822,0.00019452,2]
[387195353,1758634248864,-480.0,0.00019452,2]
[387195354,1758634248874,-480.0,0.00019452,2]
[387195355,1758634248883,-465.0162951,0.00019452,2]
[387195356,1758634248892,-480.0,0.00019452,2]
[387195357,1758634248902,-480.0,0.00019452,2]
[387195358,1758634248911,-490.28681906,0.00019452,2]
[387195359,1758634248922,-480.0,0.00019452,2]
[387195360,1758634248932,-222.05314089,0.00019452,2]
[387195361,1758634248941,-480.0,0.00019452,2]
[387195362,1758634248952,-480.0,0.00019452,2]
[387195363,1758634248962,-480.0,0.00019452,2]
[387195364,1758634248971,-483.77802172,0.00019452,2]
[387195365,1758634248980,-480.0,0.00019452,2]
[387195366,1758634248990,-480.0,0.00019452,2]
[387195367,1758634248999,-480.0,0.00019452,2]
[387195368,1758634249009,-480.0,0.00019452,2]
[387195369,1758634249018,-480.0,0.00019452,2]
[387195370,1758634249028,-480.0,0.00019452,2]
[387195371,1758634249038,-480.0,0.00019452,2]
[387195372,1758634249047,-480.0,0.00019452,2]
[387195373,1758634249057,-480.0,0.00019452,2]
[387195374,1758634249067,-480.0,0.00019452,2]
[387195375,1758634249077,-480.0,0.00019452,2]
[387195376,1758634249087,-161.06629365,0.00019452,2]
[387195377,1758634249098,-480.0,0.00019452,2]
[387195378,1758634249109,-622.42,0.00019452,2]
[387195379,1758634249119,-480.0,0.00019452,2]
[387195380,1758634249128,-480.0,0.00019452,2]
[387195381,1758634249138,-480.0,0.00019452,2]
[387195382,1758634249148,-480.0,0.00019452,2]
[387195383,1758634249158,-480.0,0.00019452,2]
[387195384,1758634249167,-524.16815484,0.00019452,2]
[387195385,1758634249177,-480.0,0.00019452,2]
[387195386,1758634249186,-480.0,0.00019452,2]
[387195387,1758634249195,-601.41160205,0.00019452,2]
[387195388,1758634249205,-480.0,0.00019452,2]
[387195389,1758634249215,-480.0,0.00019452,2]
[387195390,1758634249225,-480.0,0.00019452,2]
[387195391,1758634249234,-480.0,0.00019452,2]
[387195392,1758634249244,-480.0,0.00019452,2]
[387195393,1758634249253,-480.0,0.00019452,2]
[387195394,1758634249263,-480.0,0.00019452,2]
[387195395,1758634249273,-489.51959954,0.00019452,2]
[387195396,1758634249282,-626.53,0.00019452,2]
[387195397,1758634249292,-482.71331068,0.00019452,2]
[387195398,1758634249301,-480.0,0.00019452,2]
[387195399,1758634249311,-480.0,0.00019452,2]
[387195400,1758634249320,-480.0,0.00019452,2]
[387195401,1758634249332,-480.0,0.00019452,2]
[387195402,1758634249342,-480.0,0.00019452,2]
[387195403,1758634249353,-480.0,0.00019452,2]
[387195404,1758634249363,-480.0,0.00019452,2]
[387195405,1758634249372,-480.0,0.00019452,2]
[387195406,1758634249381,-480.0,0.00019452,2]
[387195407,1758634249391,-480.0,0.00019452,2]
[387195408,1758634249400,-480.0,0.00019452,2]
[387195409,1758634249410,-480.0,0.00019452,2]
[387195410,1758634249419,-5134.66,0.00019452,2]
[387195411,1758634249428,-480.0,0.00019452,2]
[387195412,1758634249438,-480.0,0.00019452,2]
[387195413,1758634249447,-480.0,0.00019452,2]
[387195414,1758634249458,-464.51291082,0.00019452,2]
[387195415,1758634249467,-480.0,0.00019452,2]
[387195416,1758634249477,-480.0,0.00019452,2]
[387195417,1758634249486,-480.0,0.00019452,2]
[387195418,1758634249495,-480.0,0.00019452,2]
[387195419,1758634249505,-480.0,0.00019452,2]
[387195420,1758634249514,-480.0,0.00019452,2]
[387195421,1758634249523,-480.0,0.00019452,2]
[387195422,1758634249532,-480.0,0.00019452,2]
[387195423,1758634249541,-480.0,0.00019452,2]
[387195424,1758634249550,-480.0,0.00019452,2]
[387195425,1758634249560,-480.0,0.00019452,2]
[387195426,1758634249569,-480.0,0.00019452,2]
[387195427,1758634249579,-480.0,0.00019452,2]
[387195428,1758634249588,-480.0,0.00019452,2]
[387195429,1758634249598,-701.63,0.00019452,2]
[387195430,1758634249608,-480.0,0.00019452,2]
[387195431,1758634249618,-480.0,0.00019452,2]
[387195432,1758634249628,-480.0,0.00019452,2]
[387195433,1758634249637,-480.0,0.00019452,2]
[387195434,1758634249646,-480.0,0.00019452,2]
[387195435,1758634249656,-480.0,0.00019452,2]
[387195436,1758634249665,-696.83,0.00019452,2]
[387195437,1758634249674,-2390.27,0.00019452,2]
[387195438,1758634249684,-480.0,0.00019452,2]
[387195439,1758634249693,-480.0,0.00019452,2]
[387195440,1758634249703,-480.0,0.00019452,2]
[387195441,1758634249712,-480.0,0.00019452,2]
[387195442,1758634249722,-709.94,0.00019452,2]
[387195443,1758634249731,-480.0,0.00019452,2]
[387195444,1758634249741,-480.0,0.00019452,2]
[387195445,1758634249751,-480.0,0.00019452,2]
[387195446,1758634249760,-480.0,0.00019452,2]
[387195447,1758634249770,-480.0,0.00019452,2]
[387195448,1758634249779,-480.0,0.00019452,2]
[387195449,1758634249788,-480.0,0.00019452,2]
[387195450,1758634249797,-480.0,0.00019452,2]
[387195451,1758634249806,-480.0,0.00019452,2]
[387195452,1758634249816,-480.0,0.00019452,2]
[387195453,1758634249828,-600.78350018,0.00019452,2]
[387195454,1758634249847,-497.75531138,0.00019452,2]
[387195455,1758634249859,-480.0,0.00019452,2]
[387195456,1758634249868,-480.0,0.00019452,2]
[387195457,1758634249877,-480.0,0.00019452,2]
[387195458,1758634249886,-480.0,0.00019452,2]
[387195459,1758634249895,-292.51391753,0.00019452,2]
[387195460,1758634249904,-428.66184384,0.00019452,2]
[387195461,1758634249913,-1806.9,0.00019452,2]
[387195462,1758634249922,-480.0,0.00019452,2]
[387195463,1758634249932,-964.74,0.00019452,2]
[387195464,1758634249940,-480.0,0.00019452,2]
[387195465,1758634249950,-1773.99,0.00019452,2]
[387195466,1758634249960,-480.0,0.00019452,2]
[387195467,1758634249969,-1090.09,0.00019452,2]
[387195468,1758634249978,-480.0,0.00019452,2]
[387195469,1758634249987,-593.76295217,0.00019452,2]
[387195470,1758634249998,-480.0,0.00019452,2]
[387195471,1758634250007,-480.0,0.00019452,2]
[387195472,1758634250016,-480.0,0.00019452,2]
[387195473,1758634250025,-480.0,0.00019452,2]
[387195474,1758634250035,-1180.04,0.00019452,2]
[387195475,1758634250044,-480.0,0.00019452,2]
[387195476,1758634250054,-480.0,0.00019452,2]
[387195477,1758634250064,-480.0,0.00019452,2]
[387195478,1758634250075,-480.0,0.00019452,2]
[387195479,1758634250085,-480.0,0.00019452,2]
[387195480,1758634250094,-480.0,0.00019452,2]
[387195481,1758634250104,-480.0,0.00019452,2]
[387195482,1758634250113,-627.82,0.00019452,2]
[387195483,1758634250123,-480.0,0.00019452,2]
[387195484,1758634250132,-480.0,0.00019452,2]
[387195485,1758634250141,-480.0,0.00019452,2]
[387195486,1758634250151,-480.0,0.00019452,2]
[387195487,1758634250160,-480.0,0.00019452,2]
[387195488,1758634250169,-480.0,0.00019452,2]
[387195489,1758634250178,-480.0,0.00019452,2]
[387195490,1758634250188,-480.0,0.00019452,2]
[387195491,1758634250197,-486.76859424,0.00019452,2]
[387195492,1758634250206,-480.0,0.00019452,2]
[387195493,1758634250216,-480.0,0.00019452,2]
[387195494,1758634250225,-612.97,0.00019452,2]
[387195495,1758634250234,-480.0,0.00019452,2]
[387195496,1758634250244,-568.19433844,0.00019452,2]
[387195497,1758634250253,-643.34,0.00019452,2]
[387195498,1758634250263,-480.0,0.00019452,2]
[387195499,1758634250272,-508.36660631,0.00019452,2]
[387195500,1758634250281,-385.01722467,0.00019452,2]
[387195501,1758634250291,-480.0,0.00019452,2]
[387195502,1758634250300,-480.0,0.00019452,2]
[387195503,1758634250309,-480.0,0.00019452,2]
[387195504,1758634250318,-480.0,0.00019452,2]
[387195505,1758634250327,-480.0,0.00019452,2]
[387195506,1758634250337,-480.0,0.00019452,2]
[387195507,1758634250346,-480.0,0.00019452,2]
[387195508,1758634250356,-480.0,0.00019452,2]
[387195509,1758634250366,-480.0,0.00019452,2]
[387195510,1758634250375,-687.47,0.00019452,2]
[387195511,1758634250385,-480.0,0.00019452,2]
[387195512,1758634250394,-480.0,0.00019452,2]
[387195513,1758634250404,-2119.29,0.00019452,2]
[387195514,1758634250496,-480.0,0.00019452,2]
[387195515,1758634250507,-480.0,0.00019452,2]
[387195516,1758634250517,-480.0,0.00019452,2]
[387195517,1758634250527,-621.75,0.00019452,2]
[387195518,1758634250537,-845.66,0.00019452,2]
[387195519,1758634250547,-926.74,0.00019452,2]
[387195520,1758634250557,-228.45954699,0.00019452,2]
[387195521,1758634250567,-610.57734665,0.00019452,2]
[387195522,1758634250577,-480.0,0.00019452,2]
[387195523,1758634250587,-480.0,0.00019452,2]
[387195524,1758634250596,-683.81,0.00019452,2]
[387195525,1758634250608,-363.66748593,0.00019452,2]
[387195526,1758634250619,-480.0,0.00019452,2]
[387195527,1758634250629,-897.15,0.00019452,2]
[387195528,1758634250639,-1177.21,0.00019452,2]
[387195529,1758634250649,-480.0,0.00019452,2]
[387195530,1758634250659,-424.2209802,0.00019452,2]
[387195531,1758634250669,-480.0,0.00019452,2]
[387195532,1758634250678,-480.0,0.00019452,2]
[387195533,1758634250688,-480.0,0.00019452,2]
[387195534,1758634250698,-480.0,0.00019452,2]
[387195535,1758634250708,-480.0,0.00019452,2]
[387195536,1758634250719,-486.12692028,0.00019452,2]
[387195537,1758634250729,-480.0,0.00019452,2]
[387195538,1758634250739,-480.0,0.00019452,2]
[387195539,1758634250749,-486.0072384,0.00019452,2]
[387195540,1758634250759,-480.0,0.00019452,2]
[387195541,1758634250769,-480.0,0.00019452,2]
[387195542,1758634250779,-1071.02,0.00019452,2]
[387195543,1758634250788,-726.02,0.00019452,2]
[387195544,1758634250798,-480.0,0.00019452,2]
[387195545,1758634250808,-485.86048733,0.00019452,2]
[387195546,1758634250818,-9076.35,0.00019452,2]
[387195547,1758634250828,-480.0,0.00019452,2]
[387195548,1758634250839,-480.0,0.00019452,2]
[387195549,1758634250848,-480.0,0.00019452,2]
[387195550,1758634250863,-480.0,0.00019452,2]
[387195551,1758634250872,-693.25,0.00019452,2]
[387195552,1758634250882,-896.84,0.00019452,2]
[387195553,1758634250892,-855.27,0.00019452,2]
[387195554,1758634250903,-480.0,0.00019452,2]
[387195555,1758634250913,-225.12033315,0.00019452,2]
[387195556,1758634250923,-480.0,0.00019452,2]
[387195557,1758634250933,-500.0,0.00019473,2]
[387195558,1758634250943,-500.0,0.00019473,2]
[387195559,1758634250952,-168.0,0.00019521,2]
[387195560,1758634250962,-174.26759782,0.00019534,2]
[387195561,1758634250972,-174.26759782,0.00019616,2]
[387195562,1758634250981,-174.26759782,0.00019699,2]
[387195563,1758634250991,-391.19863178,0.00019721,2]
[387195564,1758634251000,-507.36583507,0.00019721,2]
[387195565,1758634251010,-1000.0,0.00019721,2]
[387195566,1758634251019,-500.0,0.00019726,2]
[387195567,1758634251029,-480.0,0.00019726,2]
[387195568,1758634251039,-480.0,0.00019726,2]
[387195569,1758634251048,-480.0,0.00019726,2]
[387195570,1758634251058,-480.0,0.00019726,2]
[387195571,1758634251067,-480.0,0.00019726,2]
[387195572,1758634251077,-480.0,0.00019726,2]
[387195573,1758634251086,-482.55143365,0.00019726,2]
[387195574,1758634251095,-480.0,0.00019726,2]
[387195575,1758634251105,-480.0,0.00019726,2]
[387195576,1758634251115,-480.0,0.00019726,2]
[387195577,1758634251124,-552.91187239,0.00019726,2]
[387195578,1758634251134,-487.12475197,0.00019726,2]
[387195579,1758634251143,-496.00666099,0.00019726,2]
[387195580,1758634251153,-480.0,0.00019726,2]
[387195581,1758634251162,-480.0,0.00019726,2]
[387195582,1758634251172,-480.0,0.00019726,2]
[387195583,1758634251181,-480.0,0.00019726,2]
[387195584,1758634251191,-480.0,0.00019726,2]
[387195585,1758634251200,-480.0,0.00019726,2]
[387195586,1758634251209,-480.0,0.00019726,2]
[387195587,1758634251218,-340.27229525,0.00019726,2]
[387195588,1758634251228,-480.0,0.00019726,2]
[387195589,1758634251237,-480.0,0.00019726,2]
[387195590,1758634251247,-622.42,0.00019726,2]
[387195591,1758634251256,-480.0,0.00019726,2]
[387195592,1758634251266,-480.0,0.00019726,2]
[387195593,1758634251275,-480.0,0.00019726,2]
[387195594,1758634251284,-480.0,0.00019726,2]
[387195595,1758634251294,-480.0,0.00019726,2]
[387195596,1758634251303,-480.0,0.00019726,2]
[387195597,1758634251312,-480.0,0.00019726,2]
[387195598,1758634251321,-626.53,0.00019726,2]
[387195599,1758634251331,-190.33614436,0.00019726,2]
[387195600,1758634251340,-5134.66,0.00019726,2]
[387195601,1758634251349,-480.0,0.00019726,2]
[387195602,1758634251359,-480.0,0.00019726,2]
[387195603,1758634251368,-480.0,0.00019726,2]
[387195604,1758634251377,-480.0,0.00019726,2]
[387195605,1758634251387,-480.0,0.00019726,2]
[387195606,1758634251396,-480.0,0.00019726,2]
[387195607,1758634251405,-701.63,0.00019726,2]
[387195608,1758634251415,-480.0,0.00019726,2]
[387195609,1758634251424,-696.83,0.00019726,2]
[387195610,1758634251434,-2390.27,0.00019726,2]
[387195611,1758634251444,-480.0,0.00019726,2]